Workbook

Sheet Sheet1
B1: GUS - ceny skupu
B2: Pszenica | C2: Żyto
A3: 2000-01-31 | B3: 50.95 | C3: 37.84
A4: 2000-02-28 | B4: 52.09 | C4: 38.25 | D4: =C4/C3*100 - 100 -> 1.083509514
A5: 2000-03-31 | B5: 52.42 | C5: 38.06 | D5: =C5/C4*100 - 100 -> -0.4967320261
A6: 2000-04-01 | B6: 52.84 | C6: 37.64 | D6: -1.103520757 | E6: =C6/C3*100 -100 -> -0.5285412262
A7: 2000-05-02 | B7: 57.17 | C7: 39.12 | D7: 3.931987248 | E7: =C7/C4*100 -100 -> 2.274509804
A8: 2000-06-02 | B8: 64.87 | C8: 41.66 | D8: 6.492842536 | E8: 9.458749343
A9: 2000-07-02 | B9: 61.29 | C9: 38.2 | D9: -8.305328853 | E9: 1.487778959
A10: 2000-08-02 | B10: 49.35 | C10: 33.46 | D10: -12.40837696 | E10: -14.46830266
A11: 2000-09-02 | B11: 49.47 | C11: 34.32 | D11: 2.570233114 | E11: -17.61881901
A12: 2000-10-02 | B12: 49.28 | C12: 34.57 | D12: 0.7284382284 | E12: -9.502617801
A13: 2000-11-02 | B13: 52.92 | C13: 40.7 | D13: 17.73213769 | E13: 21.63777645
A14: 2000-12-02 | B14: 55.88 | C14: 42.45 | D14: 4.2997543 | E14: 23.68881119
A15: 2001-01-31 | B15: 58.11 | C15: 46.98 | D15: 10.67137809 | E15: 35.89817761 | F15: =C15/C3*100 -100 -> 24.15433404
A16: 2001-02-28 | B16: 58.53 | C16: 46.31 | D16: -1.426138782 | E16: 13.78378378 | F16: =C16/C4*100 -100 -> 21.07189542
A17: 2001-03-31 | B17: 57.6 | C17: 46.99 | D17: 1.468365364 | E17: 10.69493522 | F17: 23.46295323
A18: 2001-04-01 | B18: 57.27 | C18: 43.97 | D18: -6.42689934 | E18: -6.406981694 | F18: 16.81721573
A19: 2001-05-02 | B19: 56.34 | C19: 43.44 | D19: -1.205367296 | E19: =C19/C16*100 -100 -> -6.19736558 | F19: 11.04294479
A20: 2001-06-02 | B20: 55.82 | C20: 43.06 | D20: -0.8747697974 | E20: -8.363481592 | F20: 3.360537686
A21: 2001-07-02 | B21: 52.69 | C21: 40.21 | D21: -6.618671621 | E21: -8.551284967 | F21: 5.261780105
A22: 2001-08-02 | B22: 48.78 | C22: 34.51 | D22: -14.17557821 | E22: -20.55709024 | F22: 3.138075314
A23: 2001-09-02 | B23: 49.11 | C23: 34.54 | D23: 0.08693132425 | E23: -19.78634464 | F23: 0.641025641
A24: 2001-10-02 | B24: 49.35 | C24: 34.9 | D24: 1.042269832 | E24: -13.20567023 | F24: 0.9545849002
A25: 2001-11-02 | B25: 46.53 | C25: 35.56 | D25: 1.891117479 | E25: 3.042596349 | F25: -12.62899263
A26: 2001-12-02 | B26: 47.49 | C26: 36.45 | D26: 2.502812148 | E26: 5.529820498 | F26: -14.13427562
A27: 2002-01-31 | B27: 47.7 | C27: 38.15 | D27: 4.663923182 | E27: =C27/C24*100 -100 -> 9.312320917 | F27: =C27/C15*100 -100 -> -18.79523201
A28: 2002-02-28 | B28: 48.33 | C28: 37.39 | D28: -1.992136304 | E28: 5.146231721 | F28: -19.2614986
A29: 2002-03-31 | B29: 48.26 | C29: 37.36 | D29: -0.08023535705 | E29: 2.496570645 | F29: -20.49372207
A30: 2002-04-01 | B30: 47.84 | C30: 37.44 | D30: 0.2141327623 | E30: -1.861074705 | F30: -14.8510348
A31: 2002-05-02 | B31: 46.86 | C31: 37.08 | D31: -0.9615384615 | E31: -0.8290986895 | F31: -14.64088398
A32: 2002-06-02 | B32: 46.6 | C32: 37.29 | D32: 0.5663430421 | E32: -0.187366167 | F32: -13.39990711
A33: 2002-07-02 | B33: 43.44 | C33: 32.29 | D33: -13.40842049 | E33: -13.75534188 | F33: -19.69659289
A34: 2002-08-02 | B34: 43.01 | C34: 31.95 | D34: -1.052957572 | E34: -13.83495146 | F34: -7.41813967
A35: 2002-09-02 | B35: 42.94 | C35: 31.98 | D35: 0.09389671362 | E35: -14.23974256 | F35: -7.411696584
A36: 2002-10-02 | B36: 43.26 | C36: 32.42 | D36: 1.375859912 | E36: 0.4026014246 | F36: -7.106017192
A37: 2002-11-02 | B37: 42.24 | C37: 33.49 | D37: 3.300431832 | E37: 4.820031299 | F37: -5.821147357
A38: 2002-12-02 | B38: 43.1 | C38: 33.38 | D38: -0.3284562556 | E38: 4.377736085 | F38: -8.422496571
A39: 2003-01-31 | B39: 43.58 | C39: 35.3 | D39: 5.751947274 | E39: 8.883405305 | F39: -7.47051114
A40: 2003-02-28 | B40: 44.69 | C40: 35.99 | D40: 1.954674221 | E40: 7.4649149 | F40: -3.744316662
A41: 2003-03-31 | B41: 45.42 | C41: 36.33 | D41: 0.944706863 | E41: 8.837627322 | F41: -2.756959315
A42: 2003-04-01 | B42: 47.47 | C42: 37.65 | D42: 3.633360859 | E42: 6.657223796 | F42: 0.5608974359
A43: 2003-05-02 | B43: 51.44 | C43: 41.88 | D43: 11.23505976 | E43: 16.36565713 | F43: 12.94498382
A44: 2003-06-02 | B44: 53.35 | C44: 43.71 | D44: 4.369627507 | E44: 20.31379026 | F44: 17.21641191
A45: 2003-07-02 | B45: 47.88 | C45: 36.11 | D45: -17.38732555 | E45: -4.090305445 | F45: 11.83028801
A46: 2003-08-02 | B46: 43.54 | C46: 32.54 | D46: -9.886458045 | E46: -22.30181471 | F46: 1.846635368
A47: 2003-09-02 | B47: 44.25 | C47: 33.67 | D47: 3.472649047 | E47: -22.96957218 | F47: 5.284552846
A48: 2003-10-02 | B48: 44.55 | C48: 34.47 | D48: 2.376002376 | E48: -4.541678205 | F48: 6.323257249
A49: 2003-11-02 | B49: 54.72 | C49: 42.8 | D49: 24.1659414 | E49: 31.53042409 | F49: 27.79934309
A50: 2003-12-02 | B50: 62.77 | C50: 47.18 | D50: 10.23364486 | E50: 40.12474012 | F50: 41.34212103
A51: 2004-01-31 | B51: 68.71 | C51: 50.76 | D51: 7.587961 | E51: 47.25848564 | F51: 43.79603399
A52: 2004-02-28 | B52: 70.38 | C52: 51.56 | D52: 1.576044129 | E52: 20.46728972 | F52: 43.26201723
A53: 2004-03-31 | B53: 69.38 | C53: 51.22 | D53: -0.6594259116 | E53: 8.562950403 | F53: 40.98541151
A54: 2004-04-01 | B54: 69.19 | C54: 50.2 | D54: -1.991409606 | E54: -1.10323089 | F54: 33.33333333
A55: 2004-05-02 | B55: 70.16 | C55: 51.38 | D55: 2.35059761 | E55: -0.3491078355 | F55: 22.68385864
A56: 2004-06-02 | B56: 69.39 | C56: 51.4 | D56: 0.038925652 | E56: 0.3514252245 | F56: 17.59322809
A57: 2004-07-02 | B57: 61.69 | C57: 43.24 | D57: -15.87548638 | E57: -13.86454183 | F57: 19.74522293
A58: 2004-08-02 | B58: 42.34 | C58: 30.96 | D58: -28.39962997 | E58: -39.7430907 | F58: -4.855562385
A59: 2004-09-02 | B59: 42.38 | C59: 31.96 | D59: 3.22997416 | E59: -37.82101167 | F59: -5.078705079
A60: 2004-10-02 | B60: 42.59 | C60: 31.77 | D60: -0.5944931164 | E60: -26.52636448 | F60: -7.832898172
A61: 2004-11-02 | B61: 41.75 | C61: 31.87 | D61: 0.3147623544 | E61: 2.939276486 | F61: -25.53738318
A62: 2004-12-02 | B62: 41.68 | C62: 31.49 | D62: -1.192343897 | E62: -1.470588235 | F62: -33.25561679
A63: 2005-01-31 | B63: 41.22 | C63: 30.61
A64: 2005-02-28 | B64: 40.59 | C64: 30.28
A65: 2005-03-31 | B65: 39.61 | C65: 30.15
A66: 2005-04-01 | B66: 38.28 | C66: 29.3
A67: 2005-05-02 | B67: 38.21 | C67: 28.83
A68: 2005-06-02 | B68: 36.7 | C68: 28.12
A69: 2005-07-02 | B69: 37.54 | C69: 25.3
A70: 2005-08-02 | B70: 34.52 | C70: 26.08
A71: 2005-09-02 | B71: 35.63 | C71: 27.17
A72: 2005-10-02 | B72: 35.75 | C72: 27.4
A73: 2005-11-02 | B73: 35.96 | C73: 28.08
A74: 2005-12-02 | B74: 36.12 | C74: 28.71
A75: 2006-01-31 | B75: 37.59 | C75: 31.28
A76: 2006-02-28 | B76: 38.59 | C76: 33.9
A77: 2006-03-31 | B77: 39.09 | C77: 35.85
A78: 2006-04-01 | B78: 39.65 | C78: 36.16
A79: 2006-05-02 | B79: 41.09 | C79: 36.25
A80: 2006-06-02 | B80: 41.9 | C80: 34.26
A81: 2006-07-02 | B81: 40.82 | C81: 31.69
A82: 2006-08-02 | B82: 43.51 | C82: 35.88
A83: 2006-09-02 | B83: 49.38 | C83: 42.56
A84: 2006-10-02 | B84: 50.37 | C84: 47.33
A85: 2006-11-02 | B85: 53.58 | C85: 48.76
A86: 2006-12-02 | B86: 57.25 | C86: 50.98
A87: 2007-01-31 | B87: 63.05 | C87: 60.48
A88: 2007-02-28 | B88: 64.67 | C88: 62.7
A89: 2007-03-31 | B89: 63.45 | C89: 60.84
A90: 2007-04-01 | B90: 62.01 | C90: 58.01
A91: 2007-05-02 | B91: 61.09 | C91: 58.27
A92: 2007-06-02 | B92: 58.22 | C92: 55.55
A93: 2007-07-02 | B93: 55.24 | C93: 47.78
A94: 2007-08-02 | B94: 67.86 | C94: 56.44
A95: 2007-09-02 | B95: 83.73 | C95: 68.02
A96: 2007-10-02 | B96: 82.57 | C96: 69.46
A97: 2007-11-02 | B97: 79.91 | C97: 67.22
A98: 2007-12-02 | B98: 80.38 | C98: 66.22
A99: 2008-01-31 | B99: 86.12 | C99: 72.61
A100: 2008-02-28 | B100: 87.97 | C100: 73.66
A101: 2008-03-31 | B101: 90.96 | C101: 73.11
A102: 2008-04-01 | B102: 92.16 | C102: 73.65
A103: 2008-05-02 | B103: 86.46 | C103: 71.9
A104: 2008-06-02 | B104: 80.41 | C104: 68.97
A105: 2008-07-02 | B105: 68.97 | C105: 55.63
A106: 2008-08-02 | B106: 57.36 | C106: 47.95
A107: 2008-09-02 | B107: 51.71 | C107: 42.62
A108: 2008-10-02 | B108: 46.71 | C108: 37.35
A109: 2008-11-02 | B109: 46 | C109: 36.2
A110: 2008-12-02 | B110: 47.06 | C110: 35.55
A111: 2009-01-31 | B111: 47.75 | C111: 37.1
A112: 2009-02-28 | B112: 52.84 | C112: 38.23
A113: 2009-03-31 | B113: 51.75 | C113: 38.15
A114: 2009-04-01 | B114: 50.05 | C114: 36.06
A115: 2009-05-02 | B115: 50.83 | C115: 36.7
A116: 2009-06-02 | B116: 53.83 | C116: 38.56
A117: 2009-07-02 | B117: 52.28 | C117: 35.27
A118: 2009-08-02 | B118: 45.14 | C118: 29.15
A119: 2009-09-02 | B119: 46.24 | C119: 28.38
A120: 2009-10-02 | B120: 45.63 | C120: 28.46
A121: 2009-11-02 | B121: 46.04 | C121: 29.73
A122: 2009-12-02 | B122: 47.15 | C122: 30.15
A123: 2010-01-31 | B123: 49.5 | C123: 32.39
A124: 2010-02-28 | B124: 47.85 | C124: 33.1
A125: 2010-03-31 | B125: 45.43 | C125: 32.24
A126: 2010-04-01 | B126: 44.82 | C126: 33.29
A127: 2010-05-02 | B127: 47.21 | C127: 34.11
A128: 2010-06-02 | B128: 53 | C128: 36.03
A129: 2010-07-02 | B129: 54.99 | C129: 36.69
A130: 2010-08-02 | B130: 64.78 | C130: 45.66
A131: 2010-09-02 | B131: 68.83 | C131: 54.07
A132: 2010-10-02 | B132: 69.09 | C132: 58.46
A133: 2010-11-02 | B133: 70.89 | C133: 58.93
A134: 2010-12-02 | B134: 77.97 | C134: 61.91
A135: 2011-01-31 | B135: 88.9 | C135: 73.51
A136: 2011-02-28 | B136: 93.54 | C136: 79.02
A137: 2011-03-31 | B137: 91.47 | C137: 77.71
A138: 2011-04-01 | B138: 94.83 | C138: 74.99
A139: 2011-05-02 | B139: 99.22 | C139: 79.22
A140: 2011-06-02 | B140: 99.07 | C140: 80.1
A141: 2011-07-02 | B141: 86.16 | C141: 73.59
A142: 2011-08-02 | B142: 75.48 | C142: 68.4
A143: 2011-09-02 | B143: 76.77 | C143: 75.07
A144: 2011-10-02 | B144: 75.35 | C144: 82.62
A145: 2011-11-02 | B145: 74.75 | C145: 78.56
A146: 2011-12-02 | B146: 75.91 | C146: 79.99
A147: 2012-01-31 | B147: 78.25 | C147: 78.04
A148: 2012-02-28 | B148: 79.45 | C148: 81.17
A149: 2012-03-31 | B149: 80.25 | C149: 82.09
A150: 2012-04-01 | B150: 89.83 | C150: 81.57
A151: 2012-05-02 | B151: 93.34 | C151: 82.81
A152: 2012-06-02 | B152: 90.69 | C152: 85.05

Sheet Sheet2
C1: 2000-01-31 | D1: 2000-02-28 | E1: 2000-03-31 | F1: 2000-04-01 | G1: 2000-05-02 | H1: 2000-06-02 | I1: 2000-07-02 | J1: 2000-08-02 | K1: 2000-09-02 | L1: 2000-10-02 | M1: 2000-11-02 | N1: 2000-12-02 | O1: 2001-01-31 | P1: 2001-02-28 | Q1: 2001-03-31 | R1: 2001-04-01 | S1: 2001-05-02 | T1: 2001-06-02 | U1: 2001-07-02 | V1: 2001-08-02 | W1: 2001-09-02 | X1: 2001-10-02 | Y1: 2001-11-02 | Z1: 2001-12-02 | AA1: 2002-01-31 | AB1: 2002-02-28 | AC1: 2002-03-31 | AD1: 2002-04-01 | AE1: 2002-05-02 | AF1: 2002-06-02 | AG1: 2002-07-02 | AH1: 2002-08-02 | AI1: 2002-09-02 | AJ1: 2002-10-02 | AK1: 2002-11-02 | AL1: 2002-12-02 | AM1: 2003-01-31 | AN1: 2003-02-28 | AO1: 2003-03-31 | AP1: 2003-04-01 | AQ1: 2003-05-02 | AR1: 2003-06-02 | AS1: 2003-07-02 | AT1: 2003-08-02 | AU1: 2003-09-02 | AV1: 2003-10-02 | AW1: 2003-11-02 | AX1: 2003-12-02 | AY1: 2004-01-31 | AZ1: 2004-02-28 | BA1: 2004-03-31 | BB1: 2004-04-01 | BC1: 2004-05-02 | BD1: 2004-06-02 | BE1: 2004-07-02 | BF1: 2004-08-02 | BG1: 2004-09-02 | BH1: 2004-10-02 | BI1: 2004-11-02 | BJ1: 2004-12-02 | BK1: 2005-01-31 | BL1: 2005-02-28 | BM1: 2005-03-31 | BN1: 2005-04-01 | BO1: 2005-05-02 | BP1: 2005-06-02 | BQ1: 2005-07-02 | BR1: 2005-08-02 | BS1: 2005-09-02 | BT1: 2005-10-02 | BU1: 2005-11-02 | BV1: 2005-12-02 | BW1: 2006-01-31 | BX1: 2006-02-28 | BY1: 2006-03-31 | BZ1: 2006-04-01 | CA1: 2006-05-02 | CB1: 2006-06-02 | CC1: 2006-07-02 | CD1: 2006-08-02 | CE1: 2006-09-02 | CF1: 2006-10-02 | CG1: 2006-11-02 | CH1: 2006-12-02 | CI1: 2007-01-31 | CJ1: 2007-02-28 | CK1: 2007-03-31 | CL1: 2007-04-01 | CM1: 2007-05-02 | CN1: 2007-06-02 | CO1: 2007-07-02 | CP1: 2007-08-02 | CQ1: 2007-09-02 | CR1: 2007-10-02 | CS1: 2007-11-02 | CT1: 2007-12-02 | CU1: 2008-01-31 | CV1: 2008-02-28 | CW1: 2008-03-31 | CX1: 2008-04-01 | CY1: 2008-05-02 | CZ1: 2008-06-02 | DA1: 2008-07-02 | DB1: 2008-08-02 | DC1: 2008-09-02 | DD1: 2008-10-02 | DE1: 2008-11-02 | DF1: 2008-12-02 | DG1: 2009-01-31 | DH1: 2009-02-28 | DI1: 2009-03-31 | DJ1: 2009-04-01 | DK1: 2009-05-02 | DL1: 2009-06-02 | DM1: 2009-07-02 | DN1: 2009-08-02 | DO1: 2009-09-02 | DP1: 2009-10-02 | DQ1: 2009-11-02 | DR1: 2009-12-02 | DS1: 2010-01-31 | DT1: 2010-02-28 | DU1: 2010-03-31 | DV1: 2010-04-01 | DW1: 2010-05-02 | DX1: 2010-06-02 | DY1: 2010-07-02 | DZ1: 2010-08-02 | EA1: 2010-09-02 | EB1: 2010-10-02 | EC1: 2010-11-02 | ED1: 2010-12-02 | EE1: 2011-01-31 | EF1: 2011-02-28 | EG1: 2011-03-31 | EH1: 2011-04-01 | EI1: 2011-05-02 | EJ1: 2011-06-02 | EK1: 2011-07-02 | EL1: 2011-08-02 | EM1: 2011-09-02 | EN1: 2011-10-02 | EO1: 2011-11-02 | EP1: 2011-12-02 | EQ1: 2012-01-31 | ER1: 2012-02-28 | ES1: 2012-03-31 | ET1: 2012-04-01 | EU1: 2012-05-02 | EV1: 2012-06-02
A2: GUS - ceny skupu | B2: Pszenica | C2: 50.95 | D2: 52.09 | E2: 52.42 | F2: 52.84 | G2: 57.17 | H2: 64.87 | I2: 61.29 | J2: 49.35 | K2: 49.47 | L2: 49.28 | M2: 52.92 | N2: 55.88 | O2: 58.11 | P2: 58.53 | Q2: 57.6 | R2: 57.27 | S2: 56.34 | T2: 55.82 | U2: 52.69 | V2: 48.78 | W2: 49.11 | X2: 49.35 | Y2: 46.53 | Z2: 47.49 | AA2: 47.7 | AB2: 48.33 | AC2: 48.26 | AD2: 47.84 | AE2: 46.86 | AF2: 46.6 | AG2: 43.44 | AH2: 43.01 | AI2: 42.94 | AJ2: 43.26 | AK2: 42.24 | AL2: 43.1 | AM2: 43.58 | AN2: 44.69 | AO2: 45.42 | AP2: 47.47 | AQ2: 51.44 | AR2: 53.35 | AS2: 47.88 | AT2: 43.54 | AU2: 44.25 | AV2: 44.55 | AW2: 54.72 | AX2: 62.77 | AY2: 68.71 | AZ2: 70.38 | BA2: 69.38 | BB2: 69.19 | BC2: 70.16 | BD2: 69.39 | BE2: 61.69 | BF2: 42.34 | BG2: 42.38 | BH2: 42.59 | BI2: 41.75 | BJ2: 41.68 | BK2: 41.22 | BL2: 40.59 | BM2: 39.61 | BN2: 38.28 | BO2: 38.21 | BP2: 36.7 | BQ2: 37.54 | BR2: 34.52 | BS2: 35.63 | BT2: 35.75 | BU2: 35.96 | BV2: 36.12 | BW2: 37.59 | BX2: 38.59 | BY2: 39.09 | BZ2: 39.65 | CA2: 41.09 | CB2: 41.9 | CC2: 40.82 | CD2: 43.51 | CE2: 49.38 | CF2: 50.37 | CG2: 53.58 | CH2: 57.25 | CI2: 63.05 | CJ2: 64.67 | CK2: 63.45 | CL2: 62.01 | CM2: 61.09 | CN2: 58.22 | CO2: 55.24 | CP2: 67.86 | CQ2: 83.73 | CR2: 82.57 | CS2: 79.91 | CT2: 80.38 | CU2: 86.12 | CV2: 87.97 | CW2: 90.96 | CX2: 92.16 | CY2: 86.46 | CZ2: 80.41 | DA2: 68.97 | DB2: 57.36 | DC2: 51.71 | DD2: 46.71 | DE2: 46 | DF2: 47.06 | DG2: 47.75 | DH2: 52.84 | DI2: 51.75 | DJ2: 50.05 | DK2: 50.83 | DL2: 53.83 | DM2: 52.28 | DN2: 45.14 | DO2: 46.24 | DP2: 45.63 | DQ2: 46.04 | DR2: 47.15 | DS2: 49.5 | DT2: 47.85 | DU2: 45.43 | DV2: 44.82 | DW2: 47.21 | DX2: 53 | DY2: 54.99 | DZ2: 64.78 | EA2: 68.83 | EB2: 69.09 | EC2: 70.89 | ED2: 77.97 | EE2: 88.9 | EF2: 93.54 | EG2: 91.47 | EH2: 94.83 | EI2: 99.22 | EJ2: 99.07 | EK2: 86.16 | EL2: 75.48 | EM2: 76.77 | EN2: 75.35 | EO2: 74.75 | EP2: 75.91 | EQ2: 78.25 | ER2: 79.45 | ES2: 80.25 | ET2: 89.83 | EU2: 93.34 | EV2: 90.69
B3: Żyto | C3: 37.84 | D3: 38.25 | E3: 38.06 | F3: 37.64 | G3: 39.12 | H3: 41.66 | I3: 38.2 | J3: 33.46 | K3: 34.32 | L3: 34.57 | M3: 40.7 | N3: 42.45 | O3: 46.98 | P3: 46.31 | Q3: 46.99 | R3: 43.97 | S3: 43.44 | T3: 43.06 | U3: 40.21 | V3: 34.51 | W3: 34.54 | X3: 34.9 | Y3: 35.56 | Z3: 36.45 | AA3: 38.15 | AB3: 37.39 | AC3: 37.36 | AD3: 37.44 | AE3: 37.08 | AF3: 37.29 | AG3: 32.29 | AH3: 31.95 | AI3: 31.98 | AJ3: 32.42 | AK3: 33.49 | AL3: 33.38 | AM3: 35.3 | AN3: 35.99 | AO3: 36.33 | AP3: 37.65 | AQ3: 41.88 | AR3: 43.71 | AS3: 36.11 | AT3: 32.54 | AU3: 33.67 | AV3: 34.47 | AW3: 42.8 | AX3: 47.18 | AY3: 50.76 | AZ3: 51.56 | BA3: 51.22 | BB3: 50.2 | BC3: 51.38 | BD3: 51.4 | BE3: 43.24 | BF3: 30.96 | BG3: 31.96 | BH3: 31.77 | BI3: 31.87 | BJ3: 31.49 | BK3: 30.61 | BL3: 30.28 | BM3: 30.15 | BN3: 29.3 | BO3: 28.83 | BP3: 28.12 | BQ3: 25.3 | BR3: 26.08 | BS3: 27.17 | BT3: 27.4 | BU3: 28.08 | BV3: 28.71 | BW3: 31.28 | BX3: 33.9 | BY3: 35.85 | BZ3: 36.16 | CA3: 36.25 | CB3: 34.26 | CC3: 31.69 | CD3: 35.88 | CE3: 42.56 | CF3: 47.33 | CG3: 48.76 | CH3: 50.98 | CI3: 60.48 | CJ3: 62.7 | CK3: 60.84 | CL3: 58.01 | CM3: 58.27 | CN3: 55.55 | CO3: 47.78 | CP3: 56.44 | CQ3: 68.02 | CR3: 69.46 | CS3: 67.22 | CT3: 66.22 | CU3: 72.61 | CV3: 73.66 | CW3: 73.11 | CX3: 73.65 | CY3: 71.9 | CZ3: 68.97 | DA3: 55.63 | DB3: 47.95 | DC3: 42.62 | DD3: 37.35 | DE3: 36.2 | DF3: 35.55 | DG3: 37.1 | DH3: 38.23 | DI3: 38.15 | DJ3: 36.06 | DK3: 36.7 | DL3: 38.56 | DM3: 35.27 | DN3: 29.15 | DO3: 28.38 | DP3: 28.46 | DQ3: 29.73 | DR3: 30.15 | DS3: 32.39 | DT3: 33.1 | DU3: 32.24 | DV3: 33.29 | DW3: 34.11 | DX3: 36.03 | DY3: 36.69 | DZ3: 45.66 | EA3: 54.07 | EB3: 58.46 | EC3: 58.93 | ED3: 61.91 | EE3: 73.51 | EF3: 79.02 | EG3: 77.71 | EH3: 74.99 | EI3: 79.22 | EJ3: 80.1 | EK3: 73.59 | EL3: 68.4 | EM3: 75.07 | EN3: 82.62 | EO3: 78.56 | EP3: 79.99 | EQ3: 78.04 | ER3: 81.17 | ES3: 82.09 | ET3: 81.57 | EU3: 82.81 | EV3: 85.05
D4: =D3/C3*100 - 100 -> 1.083509514 | E4: =E3/D3*100 - 100 -> -0.4967320261 | F4: -1.103520757 | G4: 3.931987248 | H4: 6.492842536 | I4: -8.305328853 | J4: -12.40837696 | K4: 2.570233114 | L4: 0.7284382284 | M4: =M3/L3*100 - 100 -> 17.73213769 | N4: 4.2997543 | O4: 10.67137809 | P4: -1.426138782 | Q4: 1.468365364 | R4: -6.42689934 | S4: -1.205367296 | T4: =T3/S3*100 - 100 -> -0.8747697974 | U4: -6.618671621 | V4: -14.17557821 | W4: 0.08693132425 | X4: 1.042269832 | Y4: 1.891117479 | Z4: 2.502812148
F5: =F3/C3*100 - 100 -> -0.5285412262 | G5: =G3/D3*100 - 100 -> 2.274509804 | H5: 9.458749343 | I5: 1.487778959 | J5: -14.46830266 | K5: -17.61881901 | L5: -9.502617801 | M5: 21.63777645 | N5: 23.68881119 | O5: 35.89817761 | P5: 13.78378378 | Q5: =Q3/N3*100 - 100 -> 10.69493522 | R5: =R3/O3*100 - 100 -> -6.406981694 | S5: =S3/P3*100 - 100 -> -6.19736558 | T5: -8.363481592 | U5: -8.551284967 | V5: -20.55709024 | W5: -19.78634464 | X5: -13.20567023 | Y5: 3.042596349 | Z5: 5.529820498
O6: =O3/C3*100 - 100 -> 24.15433404 | P6: =P3/D3*100 - 100 -> 21.07189542 | Q6: =Q3/E3*100 - 100 -> 23.46295323 | R6: =R3/F3*100 - 100 -> 16.81721573 | S6: =S3/G3*100 - 100 -> 11.04294479 | T6: 3.360537686 | U6: 5.261780105 | V6: 3.138075314 | W6: 0.641025641 | X6: 0.9545849002 | Y6: -12.62899263 | Z6: -14.13427562

Sheet Sheet3
